bitfinex/quotes_BTCUSD_20240828
["timestamp","ask_amount","ask_price","bid_price","bid_amount"]
[1724832884515,0.60669313,58969.0,58968.0,0.63675]
[1724832884516,0.60769313,58969.0,58968.0,0.63675]
[1724832885394,0.60769313,58969.0,58968.0,0.128]
[1724832885605,0.60769313,58969.0,58968.0,0.028]
[1724832886051,1.11643413,58969.0,58968.0,0.028]
[1724832886306,1.45559513,58969.0,58968.0,0.028]
[1724832886529,1.11643413,58969.0,58968.0,0.028]
[1724832887273,0.77727313,58969.0,58968.0,0.028]
[1724832887478,1.11543413,58969.0,58968.0,0.014]
[1724832887687,1.11643413,58969.0,58968.0,0.028]
[1724832887894,0.77727313,58969.0,58968.0,0.028]
[1724832888110,0.77727313,58969.0,58968.0,0.014]
[1724832888111,0.60669313,58969.0,58968.0,0.014]
[1724832888341,0.77727313,58969.0,58968.0,0.024]
[1724832888766,0.60669313,58969.0,58968.0,0.014]
[1724832888988,0.60569313,58969.0,58966.0,0.1]
[1724832889193,0.60569313,58969.0,58966.0,0.269588]
[1724832889417,0.60769313,58969.0,58968.0,0.024]
[1724832889642,0.77727313,58969.0,58968.0,0.024]
[1724832889858,0.77627313,58969.0,58968.0,0.01]
[1724832890071,1.45559513,58969.0,58968.0,0.024]
[1724832890503,1.45459513,58969.0,58968.0,0.014]
[1724832891012,0.77727313,58969.0,58968.0,0.026]
[1724832891241,0.77727313,58969.0,58968.0,0.195583]
[1724832891242,0.60769313,58969.0,58968.0,0.195583]
[1724832891460,0.60769313,58969.0,58968.0,0.026]
[1724832891706,1.45559513,58969.0,58968.0,0.026]
[1724832891944,1.79475613,58969.0,58968.0,0.026]
[1724832892162,1.82134852,58969.0,58968.0,0.026]
[1724832894078,1.82634852,58969.0,58968.0,0.026]
[1724832894285,2.11527409,58969.0,58968.0,0.0268976]
[1724832894919,2.11527409,58969.0,58968.0,0.0128976]
[1724832894920,2.11427409,58969.0,58968.0,0.0128976]
[1724832895122,2.11427409,58969.0,58968.0,0.0008976]
[1724832895282,2.11427409,58969.0,58968.0,0.0058976]
[1724832895283,2.11327409,58969.0,58968.0,0.0058976]
[1724832895458,2.11327409,58969.0,58968.0,0.0108976]
[1724832897749,2.45243509,58969.0,58968.0,0.0108976]
[1724832898038,2.62098673,58969.0,58968.0,0.0108976]
[1724832899668,2.45243509,58969.0,58968.0,0.0108976]
[1724832902000,2.16350952,58969.0,58968.0,0.0058976]
[1724832903396,2.16350952,58969.0,58968.0,0.0008976]
[1724832903835,2.16450952,58969.0,58968.0,0.0008976]
[1724832904037,2.16350952,58969.0,58968.0,0.0008976]
[1724832904186,2.23552901,58969.0,58968.0,0.0008976]
[1724832904388,2.24052901,58969.0,58968.0,0.0008976]
[1724832904593,2.23752901,58969.0,58968.0,0.0008976]
[1724832904993,2.17050952,58969.0,58968.0,0.0008976]
[1724832905195,2.16850952,58969.0,58968.0,0.0008976]
[1724832905452,2.16650952,58969.0,58968.0,0.0008976]
[1724832905662,1.82734852,58969.0,58968.0,0.0008976]
[1724832906118,1.82434852,58969.0,58968.0,0.0008976]
[1724832906321,1.82634852,58969.0,58968.0,0.0008976]
[1724832906811,0.80386552,58969.0,58968.0,0.0008976]
[1724832907003,0.40656552,58969.0,58968.0,0.0008976]
[1724832907223,0.74572652,58969.0,58968.0,0.0008976]
[1724832907486,0.74972652,58969.0,58968.0,0.0008976]
[1724832907696,1.08288752,58969.0,58968.0,0.0008976]
[1724832907899,0.74372652,58969.0,58968.0,0.0008976]
[1724832908106,0.74672652,58969.0,58968.0,0.0048976]
[1724832908492,1.08288752,58969.0,58968.0,0.0048976]
[1724832908732,1.48828752,58969.0,58968.0,0.0048976]
[1724832908939,1.14912652,58969.0,58968.0,0.0048976]
[1724832909424,1.14912652,58969.0,58968.0,0.0098976]
[1724832909848,0.20526552,58969.0,58968.0,0.0098976]
[1724832910124,0.03568552,58969.0,58968.0,0.0098976]
[1724832910335,0.03568552,58969.0,58968.0,0.1794806]
[1724832910749,0.03568552,58969.0,58968.0,0.0098976]
[1724832910981,0.03568552,58969.0,58968.0,0.1794806]
[1724832911199,0.03568552,58969.0,58968.0,0.0098976]
[1724832911416,0.03568552,58969.0,58968.0,0.5186476]
[1724832911827,0.03568552,58969.0,58968.0,0.8578146]
[1724832912260,0.02659239,58969.0,58968.0,1.5722816]
[1724832912465,0.02783039,58969.0,58968.0,1.1846476]
[1724832912693,0.02783039,58969.0,58968.0,0.1128976]
[1724832912905,1.46753239,58969.0,58968.0,0.0128976]
[1724832913116,1.96788275,58969.0,58968.0,0.0128976]
[1724832913324,1.82112951,58969.0,58968.0,0.0088976]
[1724832913805,0.73240751,58969.0,58968.0,0.0078976]
[1724832914012,1.07056851,58969.0,58968.0,0.0008976]
[1724832914220,1.07156851,58969.0,58968.0,0.0108976]
[1724832914434,0.54700751,58969.0,58968.0,0.0218976]
[1724832914655,0.54700751,58969.0,58968.0,0.0008976]
[1724832914656,0.54500751,58969.0,58968.0,0.0008976]
[1724832915114,0.54600751,58969.0,58968.0,0.0138976]
[1724832915526,0.54600751,58969.0,58968.0,0.0068976]
[1724832915939,0.54600751,58969.0,58968.0,0.0138976]
[1724832916159,0.88516851,58969.0,58968.0,0.0138976]
[1724832916401,1.22432951,58969.0,58968.0,0.0138976]
[1724832916619,1.22332951,58969.0,58968.0,0.0078976]
[1724832916824,0.88516851,58969.0,58968.0,0.0168976]
[1724832917027,0.54600751,58969.0,58968.0,0.0098976]
[1724832917240,0.54600751,58969.0,58968.0,0.0008976]
[1724832917241,0.88416851,58969.0,58968.0,0.0008976]
[1724832917485,0.88616851,58969.0,58968.0,0.0178976]
[1724832917985,0.88516851,58969.0,58968.0,0.0078976]
[1724832918410,0.88516851,58969.0,58968.0,0.0098976]
[1724832918628,1.22432951,58969.0,58968.0,0.0098976]
[1724832919073,1.22332951,58969.0,58968.0,0.0008976]
[1724832919980,1.22432951,58969.0,58968.0,0.0098976]
[1724832920386,1.22432951,58969.0,58968.0,0.0108976]
[1724832920811,0.88616851,58969.0,58968.0,0.0188976]
[1724832921015,0.88516851,58969.0,58968.0,0.0088976]
[1724832921457,0.54600751,58969.0,58968.0,0.0088976]
[1724832921661,0.88616851,58969.0,58968.0,0.0178976]
[1724832922305,1.30094515,58969.0,58968.0,0.0178976]
[1724832922535,2.14494215,58969.0,58968.0,0.0178976]
[1724832922784,1.91506543,58969.0,58968.0,0.0178976]
[1724832923008,1.7019305,58969.0,58968.0,0.0178976]
[1724832923250,0.74140751,58969.0,58968.0,0.0178976]
[1724832923453,0.73468067,58969.0,58968.0,0.0178976]
[1724832923666,0.54700751,58969.0,58968.0,0.0178976]
[1724832924114,0.20784651,58969.0,58968.0,0.0178976]
[1724832924322,0.03826651,58969.0,58968.0,0.0178976]
[1724832924531,0.08876851,58969.0,58968.0,0.1874806]
[1724832924742,0.03826651,58969.0,58968.0,0.1874806]
[1724832924964,0.03826651,58969.0,58968.0,0.5266476]
[1724832925207,0.03826651,58969.0,58968.0,0.1874806]
[1724832925461,0.03826651,58969.0,58968.0,1.3484146]
[1724832925678,0.03826651,58969.0,58968.0,1.5448146]
[1724832925888,0.03826651,58969.0,58968.0,1.2056476]
[1724832926104,0.02883039,58969.0,58968.0,1.2056476]
[1724832926313,0.02883039,58969.0,58968.0,0.5004976]
[1724832926561,0.02883039,58969.0,58968.0,0.6700806]
[1724832926787,0.03827056,58969.0,58968.0,1.0092476]
[1724832926982,0.03827056,58969.0,58968.0,1.3484146]
[1724832927415,0.02883039,58969.0,58968.0,1.3484146]
[1724832928278,0.02883039,58969.0,58968.0,1.6875816]
[1724832929159,0.02883039,58969.0,58968.0,1.8696816]
[1724832929428,0.02859239,58969.0,58968.0,1.8696816]
[1724832930314,0.02759239,58969.0,58968.0,2.5390156]
[1724832930515,0.02859239,58969.0,58968.0,2.2348486]
[1724832930777,0.05052679,58985.0,58983.0,1.18678]
[1724832931025,0.12713297,58989.0,58988.0,1.28123]
[1724832931026,0.000816,58989.0,58988.0,1.28123]
[1724832931226,0.000816,58989.0,58988.0,1.720282]
[1724832931434,0.000816,58989.0,58988.0,2.059334]
[1724832931651,0.000816,58989.0,58988.0,2.058334]
[1724832932137,0.000816,58989.0,58988.0,2.080334]
[1724832932997,0.000238,59000.0,58999.0,1.186458]
[1724832933210,0.000238,59000.0,58999.0,1.879358]
[1724832933921,0.000816,59001.0,59000.0,1.18644]
[1724832933922,0.001054,59001.0,59000.0,1.18644]
[1724832934133,0.000816,59001.0,59000.0,2.39414857]
[1724832934358,0.000816,59001.0,59000.0,2.49414857]
[1724832934577,0.000816,59001.0,59000.0,2.51714857]
[1724832935020,0.000816,59001.0,59000.0,2.17816557]
[1724832935448,0.000816,59001.0,59000.0,1.86624]
[1724832936548,0.000816,59001.0,59000.0,1.91724]
[1724832936833,0.000816,59001.0,59000.0,2.599968]
[1724832937042,0.64718641,59025.0,59000.0,2.599968]
[1724832937043,0.0415985,59045.0,59038.0,0.174382]
[1724832937311,0.0002258,59046.0,59038.0,1.48298623]
[1724832937535,0.0002258,59046.0,59038.0,1.285674]
[1724832937788,0.0002258,59046.0,59038.0,1.30729098]
[1724832937989,0.0002258,59046.0,59038.0,1.722574]
[1724832938201,0.0002258,59046.0,59038.0,1.918474]
[1724832939329,0.0002258,59046.0,59038.0,2.257238]
[1724832939560,0.0002258,59046.0,59038.0,2.262238]
[1724832939777,0.0002258,59046.0,59042.0,1.909434]
[1724832940022,0.00897601,59047.0,59046.0,0.005]
[1724832940023,0.0035871,59047.0,59046.0,0.005]
[1724832940245,0.00038603,59062.0,59052.0,0.174342]
[1724832940473,0.00038603,59062.0,59052.0,1.70786995]
[1724832940699,0.00038603,59062.0,59052.0,2.07605395]
[1724832941145,0.00038603,59062.0,59052.0,2.41473795]
[1724832941390,0.00038603,59062.0,59058.0,1.610665]
[1724832941619,0.00038603,59062.0,59061.0,1.635302]
[1724832941840,0.1114797,59067.0,59066.0,0.208292]
[1724832942056,0.1114797,59067.0,59066.0,1.38061]
[1724832942290,0.1114797,59067.0,59066.0,1.719214]
[1724832942498,0.1114797,59067.0,59066.0,1.38061]
[1724832942708,0.1114797,59067.0,59066.0,0.607906]
[1724832943144,0.1114797,59067.0,59066.0,0.96951]
[1724832943380,0.1114797,59067.0,59066.0,0.630906]
[1724832943585,0.1114797,59067.0,59066.0,0.644906]
[1724832943795,0.1114797,59067.0,59066.0,0.98351]
[1724832944240,0.1114797,59067.0,59066.0,0.297302]
[1724832944478,0.1114797,59067.0,59066.0,0.283302]
[1724832944693,0.1114797,59067.0,59066.0,0.114]
[1724832944901,0.12282641,59067.0,59066.0,0.197302]
[1724832945096,0.1114797,59067.0,59066.0,0.635906]
[1724832945298,0.12282641,59067.0,59066.0,0.97451]
[1724832945513,0.1114797,59067.0,59066.0,0.99751]
[1724832946261,0.1114797,59067.0,59066.0,1.336114]
[1724832946470,0.1114797,59067.0,59066.0,2.070718]
[1724832946698,0.1114797,59067.0,59066.0,2.275718]
[1724832946942,0.1114797,59067.0,59066.0,1.937114]
[1724832947156,0.1114797,59067.0,59066.0,1.746114]
[1724832947376,0.1114797,59067.0,59066.0,1.39351]
[1724832947617,0.1114797,59067.0,59066.0,1.37951]
[1724832947854,0.1114797,59067.0,59066.0,1.40751]
[1724832948096,0.1114797,59067.0,59066.0,1.746114]
[1724832948355,0.1114797,59067.0,59066.0,1.37951]
[1724832948604,0.1114797,59067.0,59066.0,0.630906]
[1724832948829,0.1114797,59067.0,59066.0,0.96951]
[1724832949243,0.1114797,59067.0,59066.0,0.607906]
[1724832949475,0.1114797,59067.0,59066.0,0.269302]
[1724832949680,0.1114797,59067.0,59066.0,0.128]
[1724832949884,0.1114797,59067.0,59066.0,0.014]
[1724832949885,1.02702341,59067.0,59066.0,0.014]
[1724832950086,1.02702341,59067.0,59056.0,0.809158]
[1724832950087,0.51912641,59067.0,59062.0,0.169313]
[1724832950290,0.51912641,59067.0,59066.0,0.014]
[1724832950511,0.51912641,59067.0,59066.0,0.028]
[1724832950753,0.12282641,59067.0,59066.0,0.521906]
[1724832950952,0.12282641,59067.0,59066.0,1.199114]
[1724832951390,0.12282641,59067.0,59066.0,1.623718]
[1724832951391,0.1114797,59067.0,59066.0,1.623718]
[1724832951638,0.1114797,59067.0,59066.0,2.038318]
[1724832951850,0.1114797,59067.0,59066.0,1.722714]
[1724832952319,0.1114797,59067.0,59066.0,1.727714]
[1724832952588,0.1114797,59067.0,59066.0,1.722714]
[1724832953026,0.1114797,59067.0,59066.0,1.725714]
[1724832953254,0.1114797,59067.0,59066.0,1.336114]
[1724832953488,0.1114797,59067.0,59066.0,0.1]
[1724832953696,0.1114797,59067.0,59066.0,0.507906]
[1724832953903,0.12282641,59067.0,59066.0,0.97451]
[1724832954104,0.12282641,59067.0,59066.0,1.299114]
[1724832954320,0.1114797,59067.0,59066.0,1.285114]
[1724832954537,0.1114797,59067.0,59066.0,1.299114]
[1724832954956,0.1114797,59067.0,59066.0,0.98351]
[1724832955110,0.1114797,59067.0,59066.0,0.621906]
[1724832955480,0.12282641,59067.0,59066.0,0.96051]
[1724832955680,0.1122947,59067.0,59066.0,1.299114]
[1724832955888,0.1122947,59067.0,59066.0,1.285114]
[1724832956090,0.1122947,59067.0,59066.0,0.96051]
[1724832956318,0.1122947,59067.0,59066.0,0.97451]
[1724832956531,0.1122947,59067.0,59066.0,0.621906]
[1724832956754,0.1122947,59067.0,59066.0,0.1]
[1724832956976,0.1122947,59067.0,59066.0,1.827914]
[1724832957200,0.08166014,59067.0,59066.0,1.895772]
[1724832957433,0.0004,59079.0,59066.0,1.895772]
[1724832957434,0.0004,59079.0,59078.0,0.169267]
[1724832957632,0.0004,59079.0,59078.0,0.63418682]
[1724832957861,0.0004,59079.0,59078.0,0.97272182]
[1724832958056,0.0004,59079.0,59078.0,1.31125682]
[1724832958402,0.0004,59079.0,59078.0,0.969337]
[1724832958859,0.0004,59079.0,59078.0,0.946337]
[1724832959594,0.0004,59079.0,59078.0,0.607802]
[1724832960011,0.0004,59079.0,59078.0,0.946337]
[1724832960218,0.0004,59079.0,59078.0,0.974337]
[1724832960432,0.0004,59079.0,59078.0,1.321872]
[1724832960627,0.0004,59079.0,59078.0,0.269267]
[1724832960835,0.352564,59079.0,59078.0,0.014]
[1724832961077,0.36395155,59079.0,59078.0,0.028]
[1724832961288,0.19468755,59079.0,59078.0,0.183267]
[1724832961530,0.01178755,59079.0,59078.0,0.183267]
[1724832961754,0.01178755,59079.0,59078.0,0.521802]
[1724832961969,0.01178755,59079.0,59078.0,0.014]
[1724832962411,0.01178755,59079.0,59078.0,0.521802]
[1724832962652,0.01178755,59079.0,59078.0,0.507802]
[1724832962854,0.01178755,59079.0,59078.0,0.535802]
[1724832963091,0.01178755,59079.0,59078.0,0.635802]
[1724832963322,0.01178755,59079.0,59078.0,0.283267]
[1724832963577,0.01178755,59079.0,59071.0,0.338572]
[1724832963796,0.01178755,59079.0,59078.0,0.014]
[1724832964018,0.01178755,59079.0,59078.0,0.028]
[1724832964239,0.01178755,59079.0,59078.0,0.169267]
[1724832964444,0.01178755,59079.0,59076.0,0.169271]
[1724832964655,0.01178755,59079.0,59078.0,1.212872]
[1724832964870,0.01178755,59079.0,59078.0,0.974337]
[1724832965077,0.0004,59079.0,59078.0,0.297267]
[1724832965293,0.01178755,59079.0,59078.0,0.297267]
[1724832965496,0.0004,59079.0,59078.0,0.297267]
[1724832965704,0.0004,59079.0,59078.0,0.635802]
[1724832965908,0.01178755,59079.0,59078.0,1.298872]
[1724832966109,0.0004,59079.0,59078.0,0.946337]
[1724832966314,0.0004,59079.0,59078.0,0.960337]
[1724832966315,0.01178755,59079.0,59078.0,0.960337]
[1724832966537,0.0004,59079.0,59078.0,0.960337]
[1724832966741,0.01178755,59079.0,59078.0,1.284872]
[1724832966958,0.0004,59079.0,59078.0,1.298872]
[1724832967174,0.0004,59079.0,59078.0,1.312872]
[1724832967175,0.01178755,59079.0,59078.0,1.312872]
[1724832967415,0.0004,59079.0,59078.0,1.298872]
[1724832967901,0.01178755,59079.0,59078.0,1.312872]
[1724832968113,0.001217,59079.0,59078.0,1.312872]
[1724832968326,0.01260455,59079.0,59078.0,1.312872]
[1724832968539,0.022717,59079.0,59078.0,2.065907]
[1724832968744,0.03410455,59079.0,59078.0,2.065907]
[1724832969011,0.022717,59079.0,59078.0,2.065907]
[1724832969247,0.022717,59079.0,59078.0,2.037907]
[1724832969450,0.022717,59079.0,59078.0,2.051907]
[1724832969662,0.022717,59079.0,59078.0,2.065907]
[1724832970080,0.022717,59079.0,59078.0,1.284872]
[1724832970342,0.022717,59079.0,59078.0,1.312872]
[1724832970757,0.03410455,59079.0,59078.0,1.312872]
[1724832970960,0.03410455,59079.0,59078.0,1.298872]
[1724832971350,0.022717,59079.0,59078.0,1.298872]
[1724832972377,0.022717,59079.0,59078.0,1.312872]
[1724832972581,0.03410455,59079.0,59078.0,1.312872]
[1724832972976,0.03410455,59079.0,59078.0,1.298872]
[1724832973179,0.03410455,59079.0,59078.0,1.651407]
[1724832973180,0.022717,59079.0,59078.0,1.651407]
[1724832973410,0.022717,59079.0,59078.0,1.674407]
[1724832973808,0.022717,59079.0,59078.0,1.312872]
[1724832974016,0.022717,59079.0,59078.0,0.974337]
[1724832974227,0.03413924,59079.0,59078.0,0.974337]
[1724832974699,0.03413924,59079.0,59078.0,1.312872]
[1724832975144,0.03413924,59079.0,59078.0,0.974337]
[1724832975145,0.211117,59079.0,59078.0,0.974337]
[1724832975816,0.22253924,59079.0,59078.0,0.974337]
[1724832976497,0.22253924,59079.0,59078.0,0.028]
[1724832976724,0.78080324,59079.0,59078.0,0.028]
[1724832976956,0.7796802,59079.0,59078.0,0.028]
[1724832977173,0.7796802,59079.0,59069.0,0.338584]
[1724832977174,0.4087,59078.0,59069.0,0.338584]
[1724832977396,0.4087,59078.0,59066.0,0.002]
[1724832977397,0.1933,59074.0,59073.0,0.169282]
[1724832977844,0.20472224,59074.0,59068.0,0.338591]
[1724832978122,0.20472224,59074.0,59069.0,0.338584]
[1724832978339,0.20472224,59074.0,59073.0,0.169282]
[1724832978561,0.20472224,59074.0,59073.0,0.507846]
[1724832979021,0.20472224,59074.0,59073.0,0.84641]
[1724832979240,0.20472224,59074.0,59073.0,0.507846]
[1724832979680,0.20472224,59074.0,59073.0,0.169282]
[1724832979904,0.20472224,59074.0,59073.0,0.183282]
[1724832980341,0.20472224,59074.0,59073.0,0.014]
[1724832980793,0.20472224,59074.0,59073.0,0.183282]
[1724832981000,0.37400124,59074.0,59073.0,0.014]
[1724832981218,0.20472224,59074.0,59073.0,0.014]
[1724832981451,0.20382224,59074.0,59073.0,0.014]
[1724832982128,0.39964484,59074.0,59073.0,0.028]
[1724832982351,1.47856084,59074.0,59073.0,0.028]
[1724832982573,0.169293,59069.0,59068.0,0.0008987]
[1724832982833,1.248267,59069.0,59068.0,0.0008987]
[1724832983064,1.25964807,59069.0,59068.0,0.0008987]
[1724832983527,0.169307,59064.0,59049.0,0.169349]
[1724832983754,0.911822,59064.0,59051.0,0.169345]
[1724832983978,0.911822,59064.0,59050.0,0.67475286]
[1724832983979,1.250437,59064.0,59050.0,0.67475286]
[1724832984214,1.26181807,59064.0,59046.0,0.338716]
[1724832984506,1.69850176,59064.0,59043.0,0.338733]
[1724832984730,0.169352,59049.0,59045.0,0.169361]
[1724832984966,0.33866,59057.0,59035.0,0.50540786]
[1724832984967,0.6031,59048.0,59035.0,0.50540786]
[1724832985194,0.33872,59046.0,59036.0,0.50540786]
[1724832985412,0.33872,59046.0,59037.0,0.338767]
[1724832985413,0.338721,59046.0,59037.0,0.338767]
[1724832985638,0.338721,59046.0,59039.0,0.169378]
[1724832985639,0.169369,59043.0,59039.0,0.169378]
[1724832986090,0.169369,59043.0,59037.0,0.338767]
[1724832986321,0.01138107,59042.0,59039.0,0.169379]
[1724832986556,0.01138107,59042.0,59037.0,0.338767]
[1724832986557,0.18075207,59042.0,59037.0,0.169382]
[1724832986781,0.169371,59042.0,59038.0,0.169381]
[1724832987045,0.01138107,59041.0,59038.0,0.169381]
[1724832987296,0.578176,59040.0,59035.0,0.169389]
[1724832987542,0.4088,59040.0,59037.0,0.178384]
[1724832987733,0.01138107,59039.0,59038.0,0.1]
[1724832987946,0.01138107,59039.0,59038.0,0.608146]
[1724832988147,0.01138107,59039.0,59038.0,0.269382]
[1724832988603,0.01138107,59039.0,59038.0,0.1]
[1724832988812,0.01138107,59039.0,59038.0,0.508146]
[1724832989044,0.01138107,59039.0,59038.0,0.269382]
[1724832989268,0.01138107,59039.0,59038.0,0.1]
[1724832989488,0.01238107,59039.0,59038.0,0.1]
[1724832989917,0.01138107,59039.0,59034.0,0.338786]
[1724832990126,0.01138107,59039.0,59038.0,0.169382]
[1724832990355,0.01238107,59039.0,59038.0,0.169382]
[1724832990563,0.01338107,59039.0,59036.0,0.169387]
[1724832990776,0.01338107,59039.0,59032.0,0.1]
[1724832990777,0.01238107,59039.0,59038.0,0.169382]
[1724832991044,0.01238107,59039.0,59036.0,0.338774]
[1724832991263,0.01238107,59039.0,59038.0,0.169382]
[1724832991893,0.01138107,59039.0,59038.0,0.508146]
[1724832992130,0.01138107,59039.0,59038.0,0.84691]
[1724832992356,0.01338107,59039.0,59038.0,1.292674]
[1724832992567,0.01338107,59039.0,59038.0,1.308674]
[1724832992568,0.01238107,59039.0,59038.0,1.308674]
[1724832992785,0.169348,59050.0,59038.0,0.461764]
[1724832993008,0.4024,59052.0,59038.0,0.623146]
[1724832993009,0.002,59039.0,59038.0,0.623146]
[1724832993223,0.001,59039.0,59038.0,0.616146]
[1724832993687,0.001,59039.0,59038.0,0.615146]
[1724832993903,0.01226481,59039.0,59038.0,0.615146]
[1724832994146,0.001,59039.0,59038.0,0.615146]
[1724832994365,0.01226481,59039.0,59038.0,0.615146]
[1724832994607,0.001,59039.0,59038.0,0.276382]
[1724832995085,0.01226481,59039.0,59038.0,0.276382]
[1724832995315,0.01226481,59039.0,59038.0,0.107]
[1724832995316,0.170379,59039.0,59038.0,0.107]
[1724832995530,0.36704381,59039.0,59038.0,0.007]
[1724832995731,0.22422439,59039.0,59038.0,0.007]
[1724832996156,0.22522439,59039.0,59038.0,0.014]
[1724832996817,0.22522439,59039.0,59038.0,0.522146]
[1724832997294,0.22522439,59039.0,59038.0,0.86091]
[1724832997524,0.03982439,59039.0,59038.0,1.299674]
[1724832997737,0.01326481,59039.0,59038.0,1.322674]
[1724832997974,0.002,59039.0,59038.0,1.661438]
[1724832998196,0.002,59039.0,59038.0,1.299674]
[1724832998642,0.002,59039.0,59038.0,2.072038]
[1724832999084,0.002,59039.0,59038.0,2.615002]
[1724832999307,0.002,59039.0,59038.0,2.648992]
[1724832999520,0.001,59039.0,59038.0,2.641992]
[1724832999737,1e-06,59039.0,59038.0,2.980756]
[1724832999956,0.0265549,59054.0,59053.0,1.185373]
[1724833000161,0.0215,59057.0,59056.0,0.507991]
[1724833000378,0.0215,59057.0,59056.0,1.623974]
[1724833000627,0.0215,59057.0,59056.0,1.646974]
[1724833001103,0.0215,59057.0,59056.0,1.308313]
[1724833002210,0.0225,59057.0,59056.0,1.322313]
[1724833002856,0.0225,59057.0,59056.0,1.336313]
[1724833003093,0.0225,59057.0,59056.0,0.635991]
[1724833003309,0.2216,59057.0,59056.0,0.128]
[1724833003527,0.23294139,59057.0,59056.0,0.028]
[1724833004405,0.23294139,59057.0,59056.0,0.535991]
[1724833004860,0.23194139,59057.0,59056.0,0.521991]
[1724833005074,0.23194139,59057.0,59056.0,0.519991]
[1724833005511,0.23194139,59057.0,59056.0,0.858652]
[1724833005736,0.23194139,59057.0,59056.0,0.846652]
[1724833005955,0.23194139,59057.0,59056.0,0.874652]
[1724833006394,0.23194139,59057.0,59056.0,0.860652]
[1724833006609,0.23194139,59057.0,59056.0,0.874652]
[1724833007030,0.23194139,59057.0,59056.0,0.860652]
[1724833007247,0.23194139,59057.0,59056.0,0.846652]
[1724833007481,0.23194139,59057.0,59056.0,0.521991]
[1724833007903,0.23194139,59057.0,59056.0,0.507991]
[1724833008122,0.2206,59057.0,59056.0,0.846652]
[1724833008353,0.23194139,59057.0,59056.0,0.860652]
[1724833008840,0.23294139,59057.0,59056.0,0.18333]
[1724833009080,1.49467839,59057.0,59056.0,0.028]
[1724833009321,1.83333339,59057.0,59056.0,0.028]
[1724833009541,1.49467839,59057.0,59056.0,0.028]
[1724833009958,1.49367839,59057.0,59056.0,0.014]
[1724833010453,0.4151,59050.0,59047.0,0.169356]
[1724833010670,0.584448,59050.0,59046.0,0.169358]
[1724833010885,0.4151,59050.0,59047.0,0.169354]
[1724833011092,0.01134139,59049.0,59047.0,0.169354]
[1724833011525,0.01134139,59049.0,59045.0,0.338719]
[1724833011526,0.01134139,59049.0,59048.0,0.169353]
[1724833012380,0.01234139,59049.0,59048.0,0.169353]
[1724833012990,0.01334139,59049.0,59048.0,0.182353]
[1724833013615,0.01234139,59049.0,59048.0,0.182353]
[1724833013860,0.19754139,59049.0,59048.0,0.182353]
[1724833014066,0.36789139,59049.0,59048.0,0.026]
[1724833014307,1.08999239,59049.0,59048.0,0.026]
[1724833014759,1.42869339,59049.0,59048.0,0.026]
[1724833014979,1.42769339,59049.0,59048.0,0.013]
[1724833015224,0.91964239,59049.0,59048.0,0.013]
[1724833015437,1.08899239,59049.0,59048.0,0.013]
[1724833015649,1.08999239,59049.0,59048.0,0.026]
[1724833015853,1.08899239,59049.0,59048.0,0.013]
[1724833016076,1.08899239,59049.0,59048.0,0.019]
[1724833016291,0.75029139,59049.0,59048.0,0.019]
[1724833016543,0.75029139,59049.0,59048.0,0.013]
[1724833016750,1.08999239,59049.0,59048.0,0.021]
[1724833017419,0.58094139,59049.0,59048.0,0.854767]
[1724833017662,0.58194139,59049.0,59048.0,0.52306]
[1724833017871,0.75129139,59049.0,59048.0,0.015]
[1724833018094,1.08999239,59049.0,59048.0,0.008]
[1724833018311,1.08899239,59049.0,59048.0,0.008]
[1724833018526,1.08999239,59049.0,59048.0,0.018]
[1724833018758,1.42869339,59049.0,59048.0,0.018]
[1724833018969,1.42769339,59049.0,59048.0,0.0227]
[1724833019181,1.42769339,59049.0,59048.0,0.0327]
[1724833019182,1.42869339,59049.0,59048.0,0.0327]
[1724833020734,1.76739439,59049.0,59048.0,0.0327]
[1724833021158,1.79395164,59049.0,59048.0,0.0327]
[1724833021671,1.84431529,59049.0,59048.0,0.0327]
[1724833022301,1.79395164,59049.0,59048.0,0.0327]
[1724833022513,1.84431529,59049.0,59048.0,0.0327]
[1724833022734,1.79395164,59049.0,59048.0,0.0327]
[1724833023192,1.84935578,59049.0,59048.0,0.0327]
[1724833023198,1.16695773,59049.0,59048.0,0.0327]
[1724833023421,1.11654964,59049.0,59048.0,0.0327]
[1724833024330,0.22509864,59049.0,59048.0,0.202053]
[1724833024549,0.39444864,59049.0,59048.0,0.0327]
[1724833024772,0.22509864,59049.0,59048.0,0.0327]
[1724833026155,0.03989864,59049.0,59048.0,0.879467]
[1724833026597,0.03989864,59049.0,59048.0,0.54076]
[1724833026840,0.03989864,59049.0,59048.0,0.879467]
[1724833027074,0.02855725,59049.0,59048.0,1.218174]
[1724833027506,0.02855725,59049.0,59048.0,0.879467]
[1724833027737,0.02855725,59049.0,59048.0,0.54076]
[1724833027954,0.02855725,59049.0,59048.0,0.202053]
[1724833028172,0.03981977,59049.0,59048.0,0.202053]
[1724833028394,0.03981977,59049.0,59048.0,0.0327]
[1724833029296,0.03981977,59049.0,59048.0,0.202053]
[1724833029584,0.03981977,59049.0,59048.0,0.0327]
[1724833029807,0.03981977,59049.0,59048.0,0.54076]
[1724833030968,0.03881977,59049.0,59048.0,0.53076]
[1724833031184,0.03981977,59049.0,59048.0,0.54076]
[1724833031625,0.03881977,59049.0,59048.0,0.53076]
[1724833031840,0.03781977,59049.0,59048.0,0.52076]
[1724833032287,0.03781977,59049.0,59048.0,0.52976]
[1724833032982,0.03781977,59049.0,59048.0,0.52076]
[1724833033451,0.03781977,59049.0,59048.0,0.53376]
[1724833033678,0.03781977,59049.0,59048.0,0.53276]
[1724833034379,0.03781977,59049.0,59048.0,0.859467]
[1724833034615,0.03781977,59049.0,59048.0,0.873467]
[1724833034859,0.03781977,59049.0,59048.0,2.18291939]
[1724833035081,0.022318,59057.0,59056.0,0.846652]
[1724833036297,0.022318,59057.0,59056.0,2.009974]
[1724833036539,0.022318,59057.0,59056.0,2.228674]
[1724833036759,0.022318,59057.0,59056.0,2.26010732]
[1724833038177,0.022318,59057.0,59056.0,1.671313]
[1724833038401,0.022318,59057.0,59056.0,0.621991]
[1724833038641,0.022318,59057.0,59056.0,0.974652]